bitfinex/quotes_ETHUSD_20251110
["timestamp","ask_amount","ask_price","bid_price","bid_amount"]
[1762812245430,0.4911,3553.4,3552.7,0.0976]
[1762812245636,3.99280435,3553.7,3553.3,0.2019]
[1762812245974,3.52230435,3553.4,3552.7,0.0976]
[1762812246140,0.4911,3553.2,3552.9,2.81455251]
[1762812246340,0.4911,3553.2,3552.8,2.81465775]
[1762812246583,0.9616,3553.2,3552.7,0.0976]
[1762812246791,0.9616,3553.2,3552.8,2.81467741]
[1762812247455,0.4911,3552.9,3552.7,2.81474136]
[1762812247774,0.4911,3552.8,3552.4,2.81499831]
[1762812247977,0.4911,3552.8,3552.6,2.81478847]
[1762812248176,0.4911,3552.5,3552.3,0.002]
[1762812248350,0.4705,3552.7,3552.3,0.002]
[1762812248550,0.4705,3552.7,3552.3,2.8170747]
[1762812248874,0.4705,3552.7,3552.4,2.81499236]
[1762812249256,0.4705,3552.7,3552.3,2.81707298]
[1762812249451,0.4911,3552.4,3552.3,0.002]
[1762812250075,0.9616,3552.4,3552.3,0.002]
[1762812251768,3.99280435,3552.8,3552.3,0.002]
[1762812251968,3.99280435,3552.8,3552.4,2.81494308]
[1762812252385,0.76093402,3553.4,3552.4,2.81494308]
[1762812252386,0.001,3553.4,3552.5,2.84305877]
[1762812252549,0.001,3553.4,3553.1,2.8143846]
[1762812252907,0.001,3553.4,3553.2,2.84250775]
[1762812253095,0.001,3553.4,3553.3,2.81428531]
[1762812253390,0.001,3553.4,3553.3,6.66428531]
[1762812257204,0.001,3553.4,3553.3,7.61215134]
[1762812257870,0.01,3553.9,3553.6,3.849]
[1762812258263,0.4911,3553.7,3553.6,6.66300116]
[1762812258490,0.4911,3553.7,3553.6,3.55404901]
[1762812258672,0.9616,3553.7,3553.6,3.55404901]
[1762812260682,0.9616,3553.7,3553.4,3.55404901]
[1762812261002,0.4705,3553.6,3553.4,3.55404901]
[1762812261306,0.4911,3553.5,3553.4,3.55404901]
[1762812261791,0.9616,3553.5,3553.4,3.55404901]
[1762812261998,1.1837312,3553.5,3553.4,3.55404901]
[1762812263913,1.1837312,3553.5,3552.9,3.55404901]
[1762812264115,0.2221312,3553.5,3552.9,3.55404901]
[1762812264412,0.4705,3553.7,3553.0,2.50900341]
[1762812264708,0.4705,3553.5,3553.0,2.50900341]
[1762812264906,0.4715,3553.5,3553.0,2.50900341]
[1762812265202,0.4715,3553.5,3552.9,3.55404901]
[1762812265203,0.4715,3553.5,3553.1,2.81438105]
[1762812266968,0.001,3553.5,3553.4,2.81420611]
[1762812267594,0.001,3553.5,3553.4,2.84234817]
[1762812268195,0.001,3553.5,3553.4,6.39639718]
[1762812268424,0.001,3553.5,3553.4,6.36825512]
[1762812270470,0.001,3553.5,3553.4,6.20080191]
[1762812270675,0.001,3553.5,3553.4,7.19414163]
[1762812276491,0.01,3553.9,3553.8,2.62065558]
[1762812276706,0.01,3553.9,3553.8,3.02615958]
[1762812277193,0.01,3553.9,3553.8,10.52615958]
[1762812278199,0.01,3553.9,3553.8,3.02615958]
[1762812278514,0.01,3553.9,3553.8,4.42524301]
[1762812279396,0.01,3554.9,3553.8,2.65879543]
[1762812279594,0.01,3554.9,3553.8,3.5042743]
[1762812279796,0.1935,3554.9,3554.4,2.81336669]
[1762812280018,3.51709304,3554.7,3554.1,2.81364869]
[1762812280219,3.51709304,3554.7,3553.8,1.39908343]
[1762812280519,3.51709304,3554.7,3554.2,2.81355533]
[1762812280723,3.98429304,3554.7,3554.2,2.81355533]
[1762812280920,0.4672,3554.6,3554.2,2.81355533]
[1762812281229,0.5645593,3554.9,3553.7,1.259712]
[1762812281230,0.6607,3554.9,3553.7,0.405504]
[1762812281682,0.6607,3554.9,3554.6,2.81322238]
[1762812281901,0.1935,3554.9,3554.6,2.81320526]
[1762812282097,0.1935,3554.9,3554.7,0.02813176]
[1762812282636,0.1935,3554.9,3554.6,2.48569107]
[1762812282823,0.461,3554.7,3554.6,2.48569107]
[1762812283031,0.6607,3554.9,3553.9,0.405504]
[1762812283344,0.6617,3554.9,3554.6,2.81322263]
[1762812283648,0.6617,3554.9,3554.7,2.81316401]
[1762812283945,0.6617,3554.9,3554.4,2.81340341]
[1762812284242,0.4672,3554.8,3554.7,2.81317692]
[1762812284605,0.9282,3554.8,3554.7,2.81317692]
[1762812285436,0.1945,3554.9,3554.8,2.81309778]
[1762812285907,0.6555,3554.9,3554.8,2.81309778]
[1762812286248,1.1227,3554.9,3554.7,2.81316158]
[1762812286415,0.6555,3554.9,3554.7,2.81316158]
[1762812286616,0.9282,3554.8,3554.6,2.81322522]
[1762812286825,0.9282,3554.8,3554.7,2.81317692]
[1762812287143,0.461,3554.8,3554.7,2.81317692]
[1762812288342,0.1945,3554.9,3554.8,2.81309778]
[1762812288706,0.6555,3554.9,3554.8,2.44907061]
[1762812289354,0.6555,3554.9,3554.7,2.81317692]
[1762812289509,0.6555,3554.9,3554.8,2.81309778]
[1762812289707,0.6555,3554.9,3554.0,1.32061678]
[1762812289708,0.6555,3554.9,3554.5,2.81327685]
[1762812289942,0.1945,3554.9,3554.6,2.81320269]
[1762812290147,0.6617,3554.9,3554.7,2.81311419]
[1762812290553,0.9282,3554.8,3554.7,2.81311419]
[1762812290925,0.9282,3554.8,3554.0,0.44791278]
[1762812291121,0.461,3554.6,3554.4,2.81340564]
[1762812291622,0.461,3554.6,3554.5,2.8133352]
[1762812291822,0.461,3554.6,3553.9,7.5]
[1762812292030,0.1945,3554.9,3554.0,2.813731]
[1762812292748,0.6617,3554.9,3554.6,2.81323728]
[1762812292959,0.461,3554.7,3554.6,2.81323728]
[1762812293256,0.461,3554.7,3554.5,2.81331227]
[1762812293953,0.9282,3554.7,3554.4,2.81337869]
[1762812294329,0.9282,3554.7,3554.5,2.81332149]
[1762812294655,0.9282,3554.7,3554.5,2.64360395]
[1762812295029,0.9282,3554.7,3554.4,2.81337917]
[1762812295553,0.9282,3554.7,3554.3,2.81348347]
[1762812295956,0.9282,3554.7,3554.5,2.81331712]
[1762812296631,0.461,3554.7,3554.6,6.36630507]
[1762812296857,0.1945,3554.9,3554.8,2.81309778]
[1762812297258,0.6594,3554.9,3554.8,2.81309778]
[1762812298167,0.6594,3554.9,3554.7,2.81314663]
[1762812298351,0.6594,3554.9,3554.8,2.81309778]
[1762812299050,0.6594,3554.9,3554.6,3.55304901]
[1762812299248,1.1275,3554.9,3554.8,2.81309778]
[1762812300062,1.1275,3554.9,3554.7,2.81312886]
[1762812300289,0.6594,3554.9,3554.8,2.81309778]
[1762812300458,0.6594,3554.9,3554.8,3.55304901]
[1762812300786,0.011,3554.9,3554.8,0.91795175]
[1762812301092,0.011,3554.9,3554.8,2.81309778]
[1762812304885,0.011,3554.9,3554.8,17.31309778]
[1762812306657,0.011,3554.9,3554.8,17.16383744]
[1762812307196,0.011,3554.9,3554.6,2.81518366]
[1762812307197,1.1278,3554.9,3554.6,0.002]
[1762812307398,0.4649,3554.7,3554.6,2.81521983]
[1762812307603,0.6629,3554.9,3554.8,2.81309778]
[1762812307604,0.011,3554.9,3554.8,2.81309778]
[1762812311214,0.011,3554.9,3554.8,17.31309778]
[1762812311520,0.1938,3555.9,3555.6,2.81241031]
[1762812311714,0.1938,3555.9,3555.1,2.81281885]
[1762812311715,4.07207672,3555.7,3555.3,2.8126985]
[1762812311949,0.4649,3555.5,3555.4,2.8126172]
[1762812312894,0.4649,3555.5,3555.4,2.68084865]
[1762812313501,0.4649,3555.5,3555.3,2.81267061]
[1762812313705,0.933,3555.5,3554.8,14.5]
[1762812313901,0.1938,3555.9,3555.0,1.665216]
[1762812314126,0.1938,3555.9,3555.8,2.81230665]
[1762812314533,1.1268,3555.9,3555.8,2.81230665]
[1762812315332,0.01,3555.9,3555.8,2.81230665]
[1762812315507,0.4749,3555.9,3555.7,2.81235214]
[1762812315707,1.1268,3555.9,3555.7,2.81235214]
[1762812316025,0.4649,3555.8,3555.7,2.81235214]
[1762812316206,0.933,3555.8,3555.7,2.81235214]
[1762812316406,0.933,3555.8,3555.6,2.81241543]
[1762812316728,0.4681,3555.7,3555.0,1.259712]
[1762812316910,0.4681,3555.7,3555.4,2.81256831]
[1762812317311,0.4649,3555.5,3555.4,2.81256831]
[1762812317729,0.933,3555.5,3555.4,2.81256831]
[1762812318135,0.933,3555.5,3554.8,14.5]
[1762812318136,4.54017672,3555.5,3554.8,14.5]
[1762812318340,4.07207672,3555.3,3554.8,14.5]
[1762812318522,0.6487,3554.9,3554.8,2.81304509]
[1762812318714,0.6487,3554.9,3554.6,7.502]
[1762812319036,0.4649,3554.7,3554.6,9.96463473]
[1762812319332,0.4649,3554.7,3554.6,2.81325606]
[1762812319540,0.933,3554.7,3554.6,2.81325606]
[1762812321926,0.1838,3554.9,3554.8,2.81309778]
[1762812322131,0.4649,3554.7,3554.4,0.002]
[1762812322322,0.4649,3554.5,3554.4,2.81541435]
[1762812322517,0.933,3554.5,3554.4,2.81541435]
[1762812323852,0.6519,3554.9,3554.8,2.81309778]
[1762812324151,1.1168,3554.9,3554.8,2.81309778]
[1762812324628,0.6487,3554.9,3554.8,2.81309778]
[1762812324833,0.4649,3554.9,3554.8,2.67770017]
[1762812325225,0.921,3554.9,3554.8,2.67770017]
[1762812325421,0.4649,3554.9,3554.8,2.67770017]
[1762812325756,0.921,3554.9,3554.8,2.67770017]
[1762812325957,1.1181,3554.9,3554.8,2.67770017]
[1762812326656,0.662,3554.9,3554.8,2.67770017]
[1762812327035,0.1971,3555.0,3554.9,2.81301865]
[1762812327243,0.4561,3555.7,3554.9,0.54907188]
[1762812327455,0.4561,3555.7,3555.3,2.81265348]
[1762812327650,4.06327672,3555.7,3555.3,2.81265348]
[1762812327848,0.457,3555.4,3555.3,2.81265348]
[1762812328180,0.457,3555.4,3554.9,0.54907188]
[1762812328375,4.06327672,3555.4,3555.0,0.80163087]
[1762812328588,0.457,3555.0,3554.8,14.5]
[1762812328787,0.457,3555.0,3554.9,2.81301865]
[1762812329483,0.9131,3555.0,3554.9,2.81301865]
[1762812330870,0.4561,3555.3,3554.8,14.5]
[1762812331044,0.4561,3555.3,3555.0,2.81293127]
[1762812331237,0.4561,3555.3,3555.1,2.81285083]
[1762812331740,0.457,3555.2,3554.5,2.81329529]
[1762812332067,0.457,3555.0,3554.6,14.78152953]
[1762812332250,0.457,3555.0,3554.9,2.81301865]
[1762812332874,0.457,3555.0,3554.9,6.35506766]
[1762812333070,0.9131,3555.0,3554.9,6.35506766]
[1762812334171,3.60717672,3555.4,3555.1,2.81280889]
[1762812334378,0.4561,3555.6,3555.2,2.81271171]
[1762812334594,0.457,3555.3,3555.2,2.81271171]
[1762812335592,0.457,3555.3,3555.2,3.72949644]
[1762812336089,0.9131,3555.3,3555.2,3.72954911]
[1762812336590,0.457,3555.3,3555.2,3.72954911]
[1762812336994,0.457,3555.3,3555.2,3.51559442]
[1762812337690,0.4561,3555.8,3555.4,2.81262305]
[1762812338086,0.457,3555.5,3555.4,2.81262305]
[1762812338483,0.9131,3555.5,3555.4,2.81262305]
[1762812338799,0.9131,3555.5,3555.4,6.35467206]
[1762812339496,0.9131,3555.5,3555.4,3.54204901]
[1762812340293,0.001,3555.6,3555.4,6.35467206]
[1762812340494,0.001,3555.6,3555.5,2.81254394]
[1762812340998,0.458,3555.6,3555.5,2.81254394]
[1762812342013,0.001,3555.6,3555.5,2.81254394]
[1762812342214,0.001,3555.6,3555.5,7.27131455]
[1762812342592,0.001,3555.6,3555.5,21.77131455]
[1762812342907,0.01,3555.9,3555.8,6.35335566]
[1762812343091,0.01,3555.9,3555.8,5.99677199]
[1762812346717,0.6641,3555.9,3555.8,3.18446534]
[1762812346943,4.72737672,3555.9,3555.8,5.99677199]
[1762812347933,1.1202,3555.9,3555.8,5.99677199]
[1762812349131,1.1202,3555.9,3555.8,5.75497146]
[1762812349301,1.1202,3555.9,3555.8,2.94266481]
[1762812349705,1.1202,3555.9,3555.8,5.75497146]
[1762812350219,1.1202,3555.9,3555.8,2.94266481]
[1762812352620,1.1202,3555.9,3555.8,5.75497146]
[1762812353633,1.1202,3555.9,3555.8,2.94266481]
[1762812355336,1.1202,3555.9,3555.8,2.76996064]
[1762812357830,1.1202,3555.9,3555.8,2.77196064]
[1762812358164,1.1212,3555.9,3555.8,2.77196064]
[1762812361165,1.1212,3555.9,3555.4,0.002]
[1762812361366,0.485,3555.8,3554.9,2.1049598]
[1762812361572,0.485,3555.8,3555.1,1.259712]
[1762812361733,0.485,3555.8,3555.5,2.81247191]
[1762812361927,0.485,3555.8,3555.6,2.81246206]
[1762812362443,0.4849,3555.7,3555.6,2.81246206]
[1762812362769,0.485,3555.8,3555.7,2.81238574]
[1762812362973,0.011,3555.9,3555.8,2.81230665]
[1762812363155,0.011,3555.9,3555.8,3.37478352]
[1762812365732,0.011,3555.9,3555.8,17.87478352]
[1762812367285,0.011,3555.9,3555.8,17.71281345]
[1762812367964,0.011,3555.9,3555.8,14.9005068]
[1762812368181,0.011,3555.9,3555.8,17.71281345]
[1762812370560,0.011,3555.9,3555.8,14.9005068]
[1762812370759,0.011,3555.9,3555.8,17.71281345]
[1762812371466,0.011,3555.9,3555.8,14.9005068]
[1762812371671,0.011,3555.9,3555.8,17.71281345]
[1762812372263,0.011,3555.9,3555.8,14.9005068]
[1762812373404,0.011,3555.9,3555.8,14.64868359]
[1762812373606,0.4959,3555.9,3555.4,2.81262281]
[1762812373899,0.9809,3555.9,3555.6,2.812415]
[1762812374410,0.9809,3555.9,3555.7,2.81237555]
[1762812375323,0.4959,3555.9,3555.7,2.81237555]
[1762812375727,0.011,3555.9,3555.7,2.81237555]
[1762812375950,0.011,3555.9,3555.8,4.8247977]
[1762812376117,0.011,3555.9,3555.8,4.8267977]
[1762812376436,0.011,3555.9,3555.8,4.85492076]
[1762812378240,0.011,3555.9,3555.8,2.84242971]
[1762812378417,0.011,3555.9,3555.8,17.34242971]
[1762812378739,0.011,3555.9,3555.8,17.31430665]
[1762812379335,0.011,3555.9,3555.8,18.61409218]
[1762812379735,0.011,3555.9,3555.8,18.7267484]
[1762812380056,0.011,3555.9,3555.8,28.93516898]
[1762812381120,0.011,3555.9,3555.8,29.48534664]
[1762812383236,0.011,3555.9,3555.8,33.00040958]
[1762812383464,0.011,3555.9,3555.8,28.52966498]
[1762812383859,0.011,3555.9,3555.8,30.04010148]
[1762812384167,0.011,3555.9,3555.8,22.94560548]
[1762812384378,0.011,3555.9,3555.8,19.76995298]
[1762812384669,0.011,3555.9,3555.8,19.65729676]
[1762812385440,0.011,3555.9,3555.8,19.51674195]
[1762812385634,0.5001,3555.9,3555.8,19.51674195]
[1762812385836,0.5001,3555.9,3555.8,14.502]
[1762812386069,1.1727,3555.9,3555.8,14.502]
[1762812386745,1.1727,3555.9,3555.8,0.002]
[1762812387676,0.6941,3555.9,3555.8,0.002]
[1762812387879,1.1727,3555.9,3555.8,0.002]
[1762812388342,0.011,3555.9,3555.8,3.12387574]
[1762812388541,0.011,3555.9,3555.8,3.09575268]
[1762812388777,0.011,3555.9,3555.8,4.10276919]
[1762812388974,0.011,3555.9,3555.8,9.31117119]
[1762812389138,0.011,3555.9,3555.8,8.27603162]
[1762812389343,0.011,3555.9,3555.8,10.26506812]
[1762812389652,0.011,3555.9,3555.8,24.76506812]
[1762812390053,0.011,3555.9,3555.8,32.26506812]
[1762812391397,0.011,3555.9,3555.8,32.26634218]
[1762812391566,0.011,3555.9,3555.8,32.084392]
[1762812391766,0.011,3555.9,3555.8,28.56932906]
[1762812392071,0.011,3555.9,3555.8,21.06932906]
[1762812393084,0.011,3555.9,3555.8,28.56932906]
[1762812393871,0.011,3555.9,3555.8,27.0576185]
[1762812394396,0.011,3555.9,3555.8,28.56860034]
[1762812395699,0.011,3555.9,3555.8,28.57060034]
[1762812396802,0.011,3555.9,3555.8,27.0596185]
[1762812397501,0.011,3555.9,3555.8,26.90993994]
[1762812399698,0.001,3556.7,3556.6,3.21717807]
[1762812400376,0.9687,3556.7,3556.6,14.5]
[1762812401899,0.9687,3556.7,3556.6,17.31167407]
[1762812402480,0.4901,3556.7,3556.6,17.31167407]
[1762812402682,0.9687,3556.7,3556.6,17.31167407]
[1762812403605,0.9687,3556.7,3556.6,2.81167407]
[1762812404573,0.9687,3556.7,3556.6,17.31167407]
[1762812406593,0.001,3556.7,3556.6,19.83018009]
[1762812406794,0.001,3556.7,3556.6,22.09642209]
[1762812407029,0.001,3556.7,3556.6,21.08989209]
[1762812407329,0.001,3556.7,3556.6,29.43467576]
[1762812408225,0.001,3556.7,3556.6,21.93467576]
[1762812408520,0.001,3556.7,3556.6,22.49676315]
[1762812409729,0.001,3556.7,3556.6,22.21005946]
[1762812410071,0.001,3556.7,3556.6,29.71005946]
[1762812410508,0.001,3556.7,3556.6,29.14797207]
[1762812410720,0.001,3556.7,3556.6,30.65776707]
[1762812410950,0.01,3557.9,3556.6,28.13279669]
[1762812411242,0.01,3557.9,3557.8,2.81072572]
[1762812411529,0.01,3557.9,3557.8,17.31072572]
[1762812412477,0.4991,3557.9,3557.8,17.31072572]
[1762812413422,0.6726,3559.0,3558.0,0.405504]
[1762812413620,0.4886,3558.9,3558.2,0.405504]
[1762812413917,0.4886,3558.9,3558.6,2.81005033]
[1762812414117,0.4886,3558.9,3558.2,0.405504]
[1762812414118,0.4886,3558.9,3558.7,2.80995584]
[1762812414290,0.4886,3558.9,3558.8,2.80993593]
[1762812414491,0.01,3558.9,3558.8,2.80993593]
[1762812414677,0.01,3558.9,3558.8,4.93753157]
[1762812414886,0.01,3558.9,3558.8,4.90943222]
[1762812415381,0.01,3558.9,3558.8,19.91613157]
[1762812415600,0.01,3558.9,3558.8,19.88803222]
[1762812415780,0.01,3558.9,3558.8,16.19399229]
[1762812415986,1.145,3558.9,3558.8,14.5]
[1762812416486,1.145,3558.9,3558.3,7.5]
[1762812416686,0.4742,3558.4,3558.3,7.5]
[1762812417081,0.9525,3558.4,3558.3,14.5]
[1762812420684,0.9525,3558.4,3558.3,17.25996064]
[1762812421115,0.1925,3558.9,3558.5,2.81009985]
[1762812421327,0.4742,3558.6,3558.3,17.31030771]
[1762812421546,0.4742,3558.4,3558.3,17.31030771]
[1762812421861,0.4783,3558.8,3558.3,17.31030771]
[1762812421862,0.4783,3558.8,3558.5,2.81010007]
[1762812422357,0.4783,3558.8,3558.6,2.81007872]
[1762812422557,0.4742,3558.7,3558.4,3.2157196]
[1762812422763,0.4742,3558.5,3558.3,3.86]
[1762812423052,0.4742,3558.4,3558.3,3.86]
[1762812423262,0.4742,3558.4,3558.3,18.36]
[1762812423410,0.9525,3558.4,3558.3,18.36]
[1762812424814,0.4742,3558.4,3558.3,18.36]
[1762812425014,0.4742,3558.4,3558.3,21.17033077]
[1762812425215,0.9525,3558.4,3558.3,21.17033077]
[1762812425535,0.9525,3558.4,3558.3,18.36]
[1762812427151,0.9525,3558.4,3558.3,21.17033077]
[1762812427815,0.9525,3558.4,3558.3,20.99363609]
[1762812428223,0.9525,3558.4,3558.3,18.18330532]
[1762812428847,0.9525,3558.4,3558.3,20.99363609]
[1762812429431,0.4742,3558.4,3558.3,20.99363609]
[1762812430214,0.1925,3558.9,3558.3,18.18330532]
[1762812430521,0.4742,3558.4,3558.3,18.18330532]
[1762812430919,0.9535,3558.4,3558.3,20.99363609]
[1762812431326,0.9535,3558.4,3558.3,18.18330532]
[1762812431828,0.4752,3558.4,3558.3,20.99363609]
[1762812432660,0.001,3558.4,3558.3,20.99363609]
[1762812433041,0.001,3558.4,3558.3,21.39922552]
[1762812433234,0.001,3558.4,3558.3,23.06444152]
[1762812433963,0.001,3558.4,3558.3,22.89936931]
[1762812434122,0.001,3558.4,3558.3,30.39936931]
[1762812438271,0.6708,3558.9,3558.8,6.32716904]
[1762812438636,1.145,3558.9,3558.8,6.32716904]
[1762812438852,1.145,3558.9,3558.8,20.82716904]
[1762812439947,1.145,3558.9,3558.8,20.53985459]
[1762812440478,0.6667,3558.9,3558.8,20.53985459]
[1762812441054,1.145,3558.9,3558.8,17.72991866]
[1762812442442,1.145,3558.9,3558.8,20.53985459]
[1762812443499,0.4742,3558.9,3558.8,20.53985459]
[1762812443774,0.4783,3559.7,3559.2,2.80957203]
[1762812443946,0.4783,3559.7,3559.3,2.56321866]
[1762812444443,0.4742,3559.4,3559.3,2.56321866]
[1762812444975,0.9525,3559.4,3559.3,2.56321866]
[1762812445170,0.4742,3559.4,3559.3,2.56321866]
[1762812445670,0.9365,3559.4,3559.3,2.56321866]
[1762812446072,0.9365,3559.4,3559.3,16.8409668]
[1762812446679,0.9365,3559.4,3559.3,2.3409668]
[1762812449490,0.9365,3559.4,3559.0,2.3409668]
[1762812449688,0.68,3558.6,3558.3,2.3409668]
[1762812449902,0.1952,3558.6,3558.4,2.3409668]
[1762812450211,0.4623,3558.5,3558.4,2.3409668]
[1762812450509,0.9471,3558.5,3558.4,2.3409668]
[1762812452109,0.9471,3558.5,3558.4,2.06037811]
[1762812452813,0.9471,3558.5,3557.7,14.5]
[1762812453007,0.4623,3558.4,3557.7,14.5]
[1762812453302,0.4848,3557.8,3557.7,14.5]
[1762812453715,0.9471,3557.8,3557.7,14.5]
[1762812453908,0.9471,3557.8,3557.4,2.81098567]
[1762812453909,1.1423,3557.8,3557.4,2.81103001]
[1762812454078,0.4623,3557.7,3557.4,2.81103001]
[1762812454276,0.4623,3557.7,3557.5,14.5]
[1762812454707,0.4848,3557.6,3557.5,14.5]
[1762812455216,0.9471,3557.6,3557.5,14.5]
[1762812456200,0.9471,3557.6,3557.1,2.82127317]
[1762812456398,0.4623,3557.5,3557.1,3.20404591]
[1762812456614,0.4848,3557.2,3557.1,3.20404591]
[1762812456916,0.4848,3557.2,3557.1,17.70404591]
[1762812458238,0.4848,3557.2,3557.1,17.34368746]
[1762812458382,0.9471,3557.2,3557.1,14.53240861]
[1762812458690,0.9471,3557.2,3557.1,14.5]
[1762812458892,0.4848,3557.2,3557.1,14.5]
[1762812459088,0.4848,3557.2,3557.1,17.31127885]
[1762812459302,0.4848,3557.2,3557.1,14.5]
[1762812459705,0.9471,3557.2,3557.1,14.5]
[1762812459906,0.9471,3557.2,3557.1,17.31127885]
[1762812460092,0.9471,3557.2,3557.1,14.5]
[1762812461410,0.9471,3557.2,3556.6,0.002]
[1762812461611,0.4623,3557.1,3556.8,2.81146787]
[1762812461924,0.4848,3556.9,3556.8,2.81146787]
[1762812462119,0.4848,3556.9,3556.7,2.81156067]
[1762812462536,0.4848,3556.9,3556.8,2.81151596]
[1762812463239,0.4848,3556.9,3556.7,2.81156084]
[1762812463414,0.1952,3557.8,3557.0,2.81128413]
[1762812463623,0.4623,3557.5,3557.0,2.81130255]
[1762812464234,0.4623,3557.5,3557.0,2.47402656]
[1762812464439,0.1952,3557.8,3557.4,0.4782]
[1762812464747,0.4623,3557.9,3557.6,2.81087859]
[1762812464908,0.4623,3557.9,3557.7,0.02810804]
[1762812465303,0.4848,3557.8,3557.1,0.6279]
[1762812465753,0.4848,3557.8,3557.5,2.81090665]
[1762812466071,0.4848,3557.8,3557.5,2.81095939]
[1762812466234,0.9471,3557.8,3557.5,2.81095939]
[1762812466908,0.4623,3557.7,3557.3,2.81110255]
[1762812467529,0.4848,3557.4,3557.1,2.8112323]
[1762812467716,0.1952,3557.9,3557.3,2.81112079]
[1762812467914,0.1952,3557.9,3557.4,2.81099885]
[1762812468114,0.6575,3557.9,3557.1,0.1642]
[1762812468318,0.6575,3557.9,3557.3,2.81107531]
[1762812468515,0.4623,3557.8,3557.3,2.81107531]
[1762812468709,0.4623,3557.8,3557.2,2.81115128]
[1762812469539,0.4623,3557.8,3557.3,2.81111398]
[1762812469846,0.4623,3557.8,3557.1,0.1642]
[1762812470048,0.4623,3557.8,3557.4,2.81101108]
[1762812470252,0.4623,3557.8,3557.4,2.60924055]
[1762812470741,0.4623,3557.8,3557.3,2.81109173]
[1762812471249,0.4623,3557.8,3557.2,2.81119497]
[1762812471546,0.4623,3557.8,3557.2,2.81116545]
[1762812472112,0.4623,3557.8,3557.3,2.81111777]
[1762812472310,0.4623,3557.8,3556.8,0.4637]
[1762812472509,0.4623,3557.8,3557.3,2.81106687]
[1762812472838,0.4623,3557.8,3557.2,2.81116902]
[1762812473041,0.4623,3557.8,3556.9,1.07772666]
[1762812473042,0.4623,3557.8,3557.1,2.81125445]
[1762812474031,0.4623,3557.8,3556.9,1.07772666]
[1762812474245,0.4623,3557.8,3557.3,2.81106725]
[1762812474623,0.4623,3557.8,3557.2,2.81119223]
[1762812474828,0.4623,3557.8,3556.9,1.07772666]
[1762812475152,0.4623,3557.8,3557.0,0.95037267]
[1762812475321,0.4623,3557.8,3557.3,2.81111698]
[1762812475852,0.4623,3557.8,3557.0,3.76171929]
[1762812476017,0.4582,3557.4,3557.2,2.8111422]
[1762812476216,0.4582,3557.4,3557.0,0.95037267]
[1762812476412,0.4582,3557.4,3557.1,0.29540993]
[1762812476725,0.4582,3557.4,3557.1,3.10667601]
[1762812476944,0.4582,3557.4,3557.2,2.81112534]
[1762812478584,0.4967,3557.3,3557.1,0.29540993]
[1762812478720,0.4937,3557.4,3557.0,0.95037267]
[1762812478920,0.4967,3557.1,3557.0,0.95037267]
[1762812479121,0.4967,3557.1,3557.0,3.76172107]
[1762812479356,0.4967,3557.1,3557.0,5.82209918]
[1762812479738,0.4967,3557.1,3557.0,2.06037811]
[1762812480070,0.9904,3557.1,3557.0,2.06037811]
[1762812480216,0.9904,3557.1,3556.6,0.002]
[1762812480421,0.4967,3556.7,3556.6,2.06237811]
[1762812480674,0.4967,3556.7,3556.6,0.002]
[1762812480876,0.9904,3556.7,3556.6,0.002]
[1762812481023,1.4495689,3556.7,3556.6,0.002]
[1762812481485,1.47770081,3556.7,3556.6,0.002]
[1762812482188,2.73741281,3556.7,3556.6,0.002]
[1762812482378,3.60128904,3556.3,3555.5,2.81253615]
[1762812482567,3.60128904,3556.3,3555.4,2.81459532]
[1762812482765,0.4967,3555.6,3555.5,2.81254394]
[1762812483446,0.1904,3555.8,3555.5,2.81254394]
[1762812483642,0.1904,3557.0,3555.5,2.81254394]
[1762812483643,0.1904,3556.1,3555.5,0.4859]
[1762812483863,0.1904,3556.1,3555.8,0.002]
[1762812484062,0.4937,3556.0,3555.8,0.002]
[1762812484355,0.4967,3555.9,3555.8,0.002]
[1762812484764,0.9904,3555.9,3555.8,0.002]
[1762812488282,0.4967,3555.9,3555.2,2.81276434]
[1762812488458,0.4937,3555.8,3555.2,0.66471674]
[1762812488781,0.4937,3555.8,3555.1,2.82279986]
[1762812488782,0.4967,3555.3,3555.1,2.82279986]
[1762812488960,0.4937,3555.8,3555.1,2.82279986]
[1762812489278,0.4967,3555.2,3555.1,0.01]
[1762812489485,0.9904,3555.2,3555.1,0.01]
[1762812489795,0.88905212,3555.2,3554.6,0.002]
[1762812489955,0.6871,3554.7,3554.6,0.002]
[1762812490489,1.1808,3554.7,3554.6,0.002]
[1762812491282,2.158916,3554.6,3553.4,0.002]
[1762812491482,0.405504,3553.8,3553.4,0.002]
[1762812491686,0.1056,3553.5,3553.1,0.01]
[1762812491847,0.4967,3553.2,3553.1,0.01]
[1762812492438,0.9904,3553.2,3553.1,0.01]
[1762812493869,1.01853191,3553.2,3553.1,0.01]
[1762812494089,1.68357907,3553.2,3553.1,0.01]
[1762812494381,1.68357907,3553.2,3551.6,2.69431962]
[1762812494382,1.18987907,3553.2,3551.6,2.69431962]
[1762812494544,0.4937,3553.1,3552.0,0.0032]
[1762812494743,0.02813191,3553.0,3551.7,0.0024]
[1762812494990,0.02813191,3553.0,3551.7,15.05384356]
[1762812495149,0.6841,3552.9,3551.7,0.55384356]
[1762812495483,0.6841,3552.9,3551.7,0.0024]
[1762812495688,0.4937,3552.8,3551.7,0.0024]
[1762812496863,0.4937,3552.8,3551.7,2.81795025]
[1762812497063,0.4937,3552.8,3551.7,0.0024]
[1762812497264,0.4937,3552.8,3551.9,2.81539457]
[1762812497476,0.4937,3552.8,3552.0,0.0032]
[1762812497677,0.4937,3552.8,3552.0,0.0024]
[1762812497885,0.4937,3552.8,3552.1,2.81518462]
[1762812498069,0.4937,3552.8,3552.2,0.0016]
[1762812498255,0.4937,3552.8,3552.1,2.81518462]
[1762812498457,0.4937,3552.8,3552.1,4.87717254]